[Event "European Womens-ch 2025"]
[Site "Rhodes"]
[Date "2025.04.10"]
[Round "10.64"]
[White "Kaka, Rengina Tsampika"]
[Black "Zvereva, Marija"]
[Result "0-1"]
[Annotator "NA"]
[ECO "A45"]
[WhiteElo "1509"]
[BlackElo "2033"]
[PlyCount "102"]
[EventDate "2025.03.29"]
[EventType "swiss"]
[EventCountry "GRE"]
[SourceTitle "playchess.com"]
[Source "ChessBase"]
[SourceQuality "1"]
[TimeControl "40/5400+30:1800+30"]

1. d4 {[%emt 0:00:06]} Nf6 {[%emt 0:04:13]} 2. Bf4 {[%emt 0:00:10]} Nh5 {[%emt 0:00:48]} 3. Bg3 {[%emt 0:00:48]} Nxg3 {[%emt 0:00:21]} 4. hxg3 {[%emt 0:00:16]} g6 {[%emt 0:00:14]} 5. e3 {[%emt 0:00:40]} Bg7 {[%emt 0:01:44]} 6. Nf3 {[%emt 0:00:21]} d6 {[%emt 0:01:00]} 7. c3 {[%emt 0:01:45]} Nd7 {[%emt 0:00:41]} 8. Be2 {[%emt 0:01:27]} Nf6 {[%emt 0:00:44]} 9. O-O {[%emt 0:00:48]} O-O {[%emt 0:02:22]} 10. Nbd2 {[%emt 0:01:07]} b6 {[%emt 0:00:29]} 11. Qb3 {[%emt 0:03:01]} Bb7 {[%emt 0:01:21]} 12. Rfe1 {[%emt 0:00:52]} Qd7 {[%emt 0:01:12]} 13. Rad1 {[%emt 0:01:48]} c5 {[%emt 0:01:43]} 14. Bb5 {[%emt 0:02:05]} Qc7 {[%emt 0:00:45]} 15. a4 {[%emt 0:02:44]} Rac8 {[%emt 0:05:40]} 16. e4 {[%emt 0:04:15]} cxd4 {[%emt 0:02:48]} 17. cxd4 {[%emt 0:00:58]} Qc2 {[%emt 0:04:26]} 18. Qxc2 {[%emt 0:01:22]} Rxc2 {[%emt 0:00:05]} 19. e5 {[%emt 0:04:03]} Nd5 {[%emt 0:04:35]} 20. exd6 {[%emt 0:03:27]} exd6 {[%emt 0:00:27]} 21. b3 {[%emt 0:01:22]} h6 {[%emt 0:12:15]} 22. Bc4 {[%emt 0:06:04]} Rd8 {[%emt 0:03:19]} 23. Rc1 {[%emt 0:02:22]} Rxc1 {[%emt 0:03:16]} 24. Rxc1 {[%emt 0:00:09]} Nf6 {[%emt 0:08:27]} 25. Re1 {[%emt 0:05:32]} Kf8 {[%emt 0:00:13]} 26. b4 {[%emt 0:02:29]} Rc8 {[%emt 0:03:10]} 27. a5 {[%emt 0:02:36]} d5 {[%emt 0:05:58]} 28. a6 {[%emt 0:04:26]} dxc4 {[%emt 0:06:06]} 29. axb7 {[%emt 0:01:11]} Rb8 {[%emt 0:00:02]} 30. Nxc4 {[%emt 0:00:28]} Rxb7 {[%emt 0:00:04]} 31. Rd1 {[%emt 0:01:07]} Nd5 {[%emt 0:00:21]} 32. Rb1 {[%emt 0:02:01]} Nc3 {[%emt 0:00:53]} 33. Rb3 {[%emt 0:01:33]} Ne2+ {[%emt 0:00:40]} 34. Kf1 {[%emt 0:01:31]} Nxd4 {[%emt 0:00:06]} 35. Nxd4 {[%emt 0:00:16]} Bxd4 {[%emt 0:00:05]} 36. b5 {[%emt 0:02:08]} Rc7 {[%emt 0:00:38]} 37. Nd2 {[%emt 0:01:04]} Rc2 {[%emt 0:02:47]} 38. Rd3 {[%emt 0:02:20]} Bc5 {[%emt 0:04:31]} 39. Ne4 {[%emt 0:03:04]} Be7 {[%emt 0:03:41]} 40. Rd7 {[%emt 0:00:00]} Ke8 {[%emt 0:00:00]} 41. Rxa7 {[%emt 1:07:14]} f5 {[%emt 0:07:30]} 42. Rb7 {[%emt 0:00:00]} fxe4 {[%emt 0:00:46]} 43. Rxb6 {[%emt 0:00:00]} Rxf2+ {[%emt 0:01:30]} 44. Ke1 {[%emt 0:00:00]} Bb4+ {[%emt 0:02:00]} 45. Kd1 {[%emt 0:00:00]} Kf7 {[%emt 0:00:50]} 46. Rb7+ {[%emt 0:00:00]} Kf6 {[%emt 0:00:44]} 47. b6 {[%emt 0:00:00]} e3 {[%emt 0:01:08]} 48. Rd7 {[%emt 0:00:00]} e2+ {[%emt 0:00:40]} 49. Kc1 {[%emt 0:00:00]} e1=Q+ {[%emt 0:00:39]} 50. Rd1 {[%emt 0:00:00]} Ba3+ {[%emt 0:00:42]} 51. Kb1 {[%emt 0:00:00]} Qxd1# {[%emt 0:03:01]} 0-1

[Event "European Womens-ch 2025"]
[Site "Rhodes"]
[Date "2025.04.10"]
[Round "10.65"]
[White "Lamprianou, Marianna"]
[Black "Korinioti, Myrto"]
[Result "1-0"]
[Annotator "NA"]
[ECO "B23"]
[WhiteElo "1498"]
[BlackElo "1667"]
[PlyCount "55"]
[EventDate "2025.03.29"]
[EventType "swiss"]
[EventCountry "GRE"]
[SourceTitle "playchess.com"]
[Source "ChessBase"]
[SourceQuality "1"]
[TimeControl "40/5400+30:1800+30"]

1. e4 {[%emt 0:00:03]} c5 {[%emt 0:00:16]} 2. Nc3 {[%emt 0:00:11]} Nc6 {[%emt 0:00:10]} 3. Bb5 {[%emt 0:00:53]} g6 {[%emt 0:00:37]} 4. Bxc6 {[%emt 0:00:30]} bxc6 {[%emt 0:01:14]} 5. f4 {[%emt 0:00:29]} e6 {[%emt 0:00:54]} 6. Nf3 {[%emt 0:00:46]} d5 {[%emt 0:03:27]} 7. d3 {[%emt 0:05:22]} Bg7 {[%emt 0:00:39]} 8. O-O {[%emt 0:07:18]} Ne7 {[%emt 0:00:32]} 9. Rb1 {[%emt 0:05:17]} O-O {[%emt 0:05:16]} 10. Bd2 {[%emt 0:01:57]} Bxc3 {[%emt 0:31:33]} 11. Bxc3 {[%emt 0:03:03]} d4 {[%emt 0:02:18]} 12. Bd2 {[%emt 0:00:29]} Bd7 {[%emt 0:02:57]} 13. Re1 {[%emt 0:02:09]} a5 {[%emt 0:04:49]} 14. c3 {[%emt 0:01:19]} Bc8 {[%emt 0:02:43]} 15. Qa4 {[%emt 0:03:01]} dxc3 {[%emt 0:05:21]} 16. Bxc3 {[%emt 0:00:50]} Qxd3 {[%emt 0:04:25]} 17. Rbd1 {[%emt 0:00:58]} Qb5 {[%emt 0:00:56]} 18. Qc2 {[%emt 0:01:39]} Ba6 {[%emt 0:04:07]} 19. Qf2 {[%emt 0:04:39]} f6 {[%emt 0:07:05]} 20. Qh4 {[%emt 0:03:15]} Rf7 {[%emt 0:16:52]} 21. Bxf6 {[%emt 0:01:00]} Re8 {[%emt 0:01:24]} 22. Ne5 {[%emt 0:08:07]} Rg7 {[%emt 0:03:13]} 23. Bxg7 {[%emt 0:01:21]} Kxg7 {[%emt 0:00:05]} 24. Rd7 {[%emt 0:03:06]} Kf8 {[%emt 0:01:37]} 25. Qf6+ {[%emt 0:04:55]} Kg8 {[%emt 0:00:00]} 26. Qf7+ {[%emt 0:00:10]} Kh8 {[%emt 0:00:03]} 27. Qxe8+ {[%emt 0:00:17]} Kg7 {[%emt 0:00:22]} 28. Qxe7+ {[%emt 0:00:36]} 1-0